[Event "Titled Tuesday Blitz August 1 Early 2023"]
[White "Koshulyan, Egor A."]
[Black "Fernandez Garcia, Gumersindo"]
[WhiteFideId "24237000"]
[BlackFideId "24516740"]
[WhiteElo "2645"]
[BlackElo "2421"]
[Result "1-0"]
[Round "8"]
[TimeControl "180+1"]
[Date "2023.08.01"]
[WhiteClock "0:02:12"]
[BlackClock "0:01:02"]
[Board "120"]

1. g4 {[%clk 0:03:00]}  d5 {[%clk 0:02:59]} 2. Bg2 {[%clk 0:03:01]}  Bxg4 {[%clk 0:02:58]} 3. c4 {[%clk 0:03:02]}  c6 {[%clk 0:02:52]} 4. Qb3 {[%clk 0:03:01]}  Qb6 {[%clk 0:02:34]} 5. cxd5 {[%clk 0:02:59]}  Qxb3 {[%clk 0:02:31]} 6. axb3 {[%clk 0:03:00]}  Nf6 {[%clk 0:02:31]} 7. Nc3 {[%clk 0:02:58]}  a6 {[%clk 0:02:01]} 8. d3 {[%clk 0:02:53]}  Nxd5 {[%clk 0:01:54]} 9. Nxd5 {[%clk 0:02:54]}  cxd5 {[%clk 0:01:54]} 10. Bxd5 {[%clk 0:02:54]}  Nc6 {[%clk 0:01:54]} 11. Bd2 {[%clk 0:02:52]}  e6 {[%clk 0:01:54]} 12. Bxc6+ {[%clk 0:02:49]}  bxc6 {[%clk 0:01:54]} 13. h3 {[%clk 0:02:47]}  Bh5 {[%clk 0:01:54]} 14. Rc1 {[%clk 0:02:43]}  Kd7 {[%clk 0:01:54]} 15. Rc4 {[%clk 0:02:42]}  Rb8 {[%clk 0:01:53]} 16. Rd4+ {[%clk 0:02:42]}  Kc8 {[%clk 0:01:46]} 17. b4 {[%clk 0:02:42]}  Be7 {[%clk 0:01:41]} 18. Rc4 {[%clk 0:02:39]}  Kb7 {[%clk 0:01:39]} 19. e3 {[%clk 0:02:40]}  Bf6 {[%clk 0:01:37]} 20. d4 {[%clk 0:02:37]}  Bg6 {[%clk 0:01:29]} 21. Ne2 {[%clk 0:02:37]}  Bd3 {[%clk 0:01:22]} 22. Rc3 {[%clk 0:02:35]}  Bxe2 {[%clk 0:01:22]} 23. Kxe2 {[%clk 0:02:36]}  e5 {[%clk 0:01:23]} 24. dxe5 {[%clk 0:02:28]}  Bxe5 {[%clk 0:01:24]} 25. Rc2 {[%clk 0:02:28]}  Rbd8 {[%clk 0:01:20]} 26. Rhc1 {[%clk 0:02:28]}  Rd7 {[%clk 0:01:21]} 27. Rxc6 {[%clk 0:02:25]}  Bxb2 {[%clk 0:01:18]} 28. R1c2 {[%clk 0:02:25]}  Bf6 {[%clk 0:01:15]} 29. R6c5 {[%clk 0:02:16]}  Rhd8 {[%clk 0:01:14]} 30. b5 {[%clk 0:02:14]}  axb5 {[%clk 0:01:09]} 31. Rxb5+ {[%clk 0:02:15]}  Ka6 {[%clk 0:01:09]} 32. Rb1 {[%clk 0:02:14]}  Rd5 {[%clk 0:01:02]} 33. Ra2+ {[%clk 0:02:12]} 1-0


[Site "https://www.chess.com"]

[Event "Titled Tuesday Blitz August 1 Early 2023"]
[White "Bilan, Danila"]
[Black "Vivas Zamora, Fabian Ernesto"]
[WhiteFideId "24161918"]
[BlackFideId "3902480"]
[WhiteElo "2565"]
[BlackElo "2429"]
[Result "0-1"]
[Round "8"]
[TimeControl "180+1"]
[Date "2023.08.01"]
[WhiteClock "0:00:00"]
[BlackClock "0:00:18"]
[Board "121"]

1. d4 {[%clk 0:02:53]}  Nf6 {[%clk 0:02:59]} 2. Nf3 {[%clk 0:02:53]}  g6 {[%clk 0:02:59]} 3. Bg5 {[%clk 0:02:53]}  Bg7 {[%clk 0:02:59]} 4. c3 {[%clk 0:02:53]}  O-O {[%clk 0:02:57]} 5. Nbd2 {[%clk 0:02:53]}  d5 {[%clk 0:02:46]} 6. e3 {[%clk 0:02:53]}  b6 {[%clk 0:02:39]} 7. Bd3 {[%clk 0:02:47]}  Bb7 {[%clk 0:02:39]} 8. Ne5 {[%clk 0:02:47]}  Ne4 {[%clk 0:02:36]} 9. Nxe4 {[%clk 0:02:39]}  dxe4 {[%clk 0:02:37]} 10. Bc4 {[%clk 0:02:39]}  Nd7 {[%clk 0:02:20]} 11. Ng4 {[%clk 0:01:34]}  Kh8 {[%clk 0:01:42]} 12. h4 {[%clk 0:01:14]}  h5 {[%clk 0:01:30]} 13. Nh6 {[%clk 0:01:03]}  Qe8 {[%clk 0:01:30]} 14. Nf5 {[%clk 0:00:21]}  gxf5 {[%clk 0:01:16]} 15. Qxh5+ {[%clk 0:00:21]}  Kg8 {[%clk 0:01:16]} 16. Rh3 {[%clk 0:00:21]}  e6 {[%clk 0:00:55]} 17. Rg3 {[%clk 0:00:14]}  f6 {[%clk 0:00:55]} 18. Bxe6+ {[%clk 0:00:03]}  Qxe6 {[%clk 0:00:51]} 19. Bh6 {[%clk 0:00:03]}  Rf7 {[%clk 0:00:44]} 20. Qg6 {[%clk 0:00:02]}  Nf8 {[%clk 0:00:38]} 21. Qh5 {[%clk 0:00:01]}  Re8 {[%clk 0:00:20]} 22. O-O-O {[%clk 0:00:00]}  Qxa2 {[%clk 0:00:18]} 0-1


[Site "https://www.chess.com"]

[Event "Titled Tuesday Blitz August 1 Early 2023"]
[White "robertoalejandro10"]
[Black "Diaz Herquinio, Brahian"]
[BlackFideId "3809480"]
[WhiteElo "2556"]
[BlackElo "2419"]
[Result "0-1"]
[Round "8"]
[TimeControl "180+1"]
[Date "2023.08.01"]
[WhiteClock "0:00:05"]
[BlackClock "0:00:08"]
[Board "123"]

1. e4 {[%clk 0:03:00]}  c5 {[%clk 0:02:57]} 2. d4 {[%clk 0:02:51]}  cxd4 {[%clk 0:02:57]} 3. c3 {[%clk 0:02:50]}  Nf6 {[%clk 0:02:56]} 4. e5 {[%clk 0:02:49]}  Nd5 {[%clk 0:02:57]} 5. cxd4 {[%clk 0:02:50]}  e6 {[%clk 0:02:57]} 6. Nf3 {[%clk 0:02:49]}  d6 {[%clk 0:02:58]} 7. Nc3 {[%clk 0:02:48]}  Nc6 {[%clk 0:02:53]} 8. Nxd5 {[%clk 0:02:46]}  exd5 {[%clk 0:02:53]} 9. Bd3 {[%clk 0:02:39]}  Be7 {[%clk 0:02:49]} 10. h4 {[%clk 0:02:38]}  Bg4 {[%clk 0:02:41]} 11. Bf4 {[%clk 0:02:34]}  Qa5+ {[%clk 0:02:33]} 12. Kf1 {[%clk 0:02:34]}  Nxd4 {[%clk 0:02:23]} 13. exd6 {[%clk 0:02:24]}  Bxf3 {[%clk 0:01:51]} 14. gxf3 {[%clk 0:02:12]}  Bf6 {[%clk 0:01:46]} 15. Kg2 {[%clk 0:01:45]}  O-O {[%clk 0:01:41]} 16. Bg5 {[%clk 0:01:38]}  Qd8 {[%clk 0:01:38]} 17. f4 {[%clk 0:00:55]}  Qxd6 {[%clk 0:01:21]} 18. Qh5 {[%clk 0:00:53]}  g6 {[%clk 0:01:05]} 19. Qg4 {[%clk 0:00:50]}  h5 {[%clk 0:00:45]} 20. Qg3 {[%clk 0:00:40]}  Bxg5 {[%clk 0:00:44]} 21. hxg5 {[%clk 0:00:31]}  Ne6 {[%clk 0:00:40]} 22. Rh4 {[%clk 0:00:29]}  Rfe8 {[%clk 0:00:20]} 23. Rah1 {[%clk 0:00:27]}  Ng7 {[%clk 0:00:18]} 24. Qf3 {[%clk 0:00:20]}  Rad8 {[%clk 0:00:17]} 25. f5 {[%clk 0:00:20]}  gxf5 {[%clk 0:00:15]} 26. Rxh5 {[%clk 0:00:18]}  Nxh5 {[%clk 0:00:09]} 27. Qxh5 {[%clk 0:00:18]}  Kf8 {[%clk 0:00:08]} 28. Bxf5 {[%clk 0:00:14]}  Qe5 {[%clk 0:00:09]} 29. Bg4 {[%clk 0:00:08]}  Rd6 {[%clk 0:00:09]} 30. Qh4 {[%clk 0:00:03]}  Rg6 {[%clk 0:00:09]} 31. Qh8+ {[%clk 0:00:02]}  Qxh8 {[%clk 0:00:08]} 32. Rxh8+ {[%clk 0:00:03]}  Ke7 {[%clk 0:00:08]} 33. Rxe8+ {[%clk 0:00:03]}  Kxe8 {[%clk 0:00:09]} 34. f4 {[%clk 0:00:04]}  f6 {[%clk 0:00:09]} 35. Bf5 {[%clk 0:00:04]}  Rg7 {[%clk 0:00:09]} 36. g6 {[%clk 0:00:04]}  Ke7 {[%clk 0:00:09]} 37. Kf3 {[%clk 0:00:04]}  Kd6 {[%clk 0:00:09]} 38. Kg4 {[%clk 0:00:04]}  Kc5 {[%clk 0:00:09]} 39. Bb1 {[%clk 0:00:04]}  Kd6 {[%clk 0:00:08]} 40. Kf5 {[%clk 0:00:04]}  Ke7 {[%clk 0:00:09]} 41. Bd3 {[%clk 0:00:05]}  a6 {[%clk 0:00:09]} 42. Kg4 {[%clk 0:00:05]}  Rg8 {[%clk 0:00:08]} 43. Kh5 {[%clk 0:00:04]}  Kf8 {[%clk 0:00:07]} 44. Kg4 {[%clk 0:00:03]}  Kg7 {[%clk 0:00:07]} 45. Kf5 {[%clk 0:00:03]}  Re8 {[%clk 0:00:07]} 46. Bc2 {[%clk 0:00:03]}  Re2 {[%clk 0:00:07]} 47. Bb3 {[%clk 0:00:03]}  Rxb2 {[%clk 0:00:06]} 48. Bxd5 {[%clk 0:00:03]}  Rb5 {[%clk 0:00:07]} 49. Ke6 {[%clk 0:00:03]}  Kxg6 {[%clk 0:00:06]} 50. Kd6 {[%clk 0:00:02]}  Rxd5+ {[%clk 0:00:06]} 51. Kxd5 {[%clk 0:00:03]}  Kf5 {[%clk 0:00:06]} 52. Kc5 {[%clk 0:00:03]}  Kxf4 {[%clk 0:00:06]} 53. Kb6 {[%clk 0:00:04]}  Ke3 {[%clk 0:00:06]} 54. Kxb7 {[%clk 0:00:05]}  f5 {[%clk 0:00:07]} 55. Kxa6 {[%clk 0:00:06]}  f4 {[%clk 0:00:08]} 56. Kb7 {[%clk 0:00:07]}  f3 {[%clk 0:00:09]} 57. a4 {[%clk 0:00:07]}  f2 {[%clk 0:00:10]} 58. a5 {[%clk 0:00:08]}  f1=Q {[%clk 0:00:09]} 59. a6 {[%clk 0:00:09]}  Qb5+ {[%clk 0:00:09]} 60. Ka7 {[%clk 0:00:08]}  Qd7+ {[%clk 0:00:09]} 61. Kb8 {[%clk 0:00:08]}  Qd6+ {[%clk 0:00:09]} 62. Ka8 {[%clk 0:00:08]}  Qc6+ {[%clk 0:00:08]} 63. Ka7 {[%clk 0:00:08]}  Qc8 {[%clk 0:00:08]} 64. Kb6 {[%clk 0:00:05]}  Qa8 {[%clk 0:00:08]} 0-1


[Site "https://www.chess.com"]

[Event "Titled Tuesday Blitz August 1 Early 2023"]
[White "Gauravthegm"]
[Black "Demin, Vladimir"]
[BlackFideId "4167457"]
[WhiteElo "2413"]
[BlackElo "2553"]
[Result "0-1"]
[Round "8"]
[TimeControl "180+1"]
[Date "2023.08.01"]
[WhiteClock "0:00:00"]
[BlackClock "0:01:38"]
[Board "125"]

1. e4 {[%clk 0:02:59]}  e5 {[%clk 0:02:59]} 2. Nf3 {[%clk 0:02:59]}  Nc6 {[%clk 0:02:59]} 3. Bc4 {[%clk 0:02:59]}  Bc5 {[%clk 0:02:59]} 4. c3 {[%clk 0:02:58]}  Nf6 {[%clk 0:02:58]} 5. d3 {[%clk 0:02:58]}  a6 {[%clk 0:02:57]} 6. h3 {[%clk 0:02:58]}  Ba7 {[%clk 0:02:54]} 7. O-O {[%clk 0:02:58]}  d6 {[%clk 0:02:53]} 8. Nbd2 {[%clk 0:02:56]}  O-O {[%clk 0:02:53]} 9. Re1 {[%clk 0:02:55]}  Re8 {[%clk 0:02:49]} 10. Nf1 {[%clk 0:02:53]}  Be6 {[%clk 0:02:50]} 11. Bxe6 {[%clk 0:02:52]}  Rxe6 {[%clk 0:02:51]} 12. Ng3 {[%clk 0:02:52]}  d5 {[%clk 0:02:47]} 13. exd5 {[%clk 0:02:50]}  Nxd5 {[%clk 0:02:45]} 14. d4 {[%clk 0:02:49]}  exd4 {[%clk 0:02:35]} 15. Rxe6 {[%clk 0:02:48]}  fxe6 {[%clk 0:02:36]} 16. cxd4 {[%clk 0:02:47]}  h6 {[%clk 0:02:32]} 17. Qe2 {[%clk 0:02:44]}  Qf6 {[%clk 0:02:31]} 18. Ne4 {[%clk 0:02:38]}  Qf7 {[%clk 0:02:28]} 19. Nc5 {[%clk 0:02:32]}  Nxd4 {[%clk 0:02:21]} 20. Nxd4 {[%clk 0:02:28]}  Bxc5 {[%clk 0:02:21]} 21. Nb3 {[%clk 0:02:17]}  Bd6 {[%clk 0:02:18]} 22. Bd2 {[%clk 0:02:14]}  Re8 {[%clk 0:02:12]} 23. Re1 {[%clk 0:02:13]}  e5 {[%clk 0:02:11]} 24. Na5 {[%clk 0:02:05]}  b5 {[%clk 0:02:07]} 25. Nc6 {[%clk 0:01:58]}  e4 {[%clk 0:02:06]} 26. Qg4 {[%clk 0:01:45]}  Nf6 {[%clk 0:02:03]} 27. Qf5 {[%clk 0:01:38]}  Qxa2 {[%clk 0:01:59]} 28. Bxh6 {[%clk 0:01:33]}  Qd5 {[%clk 0:01:57]} 29. Qg6 {[%clk 0:01:27]}  Bf8 {[%clk 0:01:48]} 30. Rc1 {[%clk 0:01:07]}  Re6 {[%clk 0:01:41]} 31. Nb4 {[%clk 0:00:55]}  Qh5 {[%clk 0:01:39]} 32. Qxh5 {[%clk 0:00:48]}  Nxh5 {[%clk 0:01:39]} 33. Bd2 {[%clk 0:00:00]}  c5 {[%clk 0:01:38]} 0-1


[Site "https://www.chess.com"]

[Event "Titled Tuesday Blitz August 1 Early 2023"]
[White "FuenfgegenWilly"]
[Black "To, Nhat Minh"]
[BlackFideId "729019"]
[WhiteElo "2411"]
[BlackElo "2541"]
[Result "0-1"]
[Round "8"]
[TimeControl "180+1"]
[Date "2023.08.01"]
[WhiteClock "0:00:03"]
[BlackClock "0:00:06"]
[Board "126"]

1. e4 {[%clk 0:03:00]}  c6 {[%clk 0:02:56]} 2. Nc3 {[%clk 0:03:00]}  d5 {[%clk 0:02:57]} 3. d4 {[%clk 0:02:58]}  dxe4 {[%clk 0:02:57]} 4. Nxe4 {[%clk 0:02:59]}  Nd7 {[%clk 0:02:57]} 5. Qe2 {[%clk 0:02:57]}  e6 {[%clk 0:02:57]} 6. Nf3 {[%clk 0:02:52]}  Ngf6 {[%clk 0:02:56]} 7. c3 {[%clk 0:02:44]}  Be7 {[%clk 0:02:54]} 8. g3 {[%clk 0:02:41]}  b6 {[%clk 0:02:50]} 9. Bg2 {[%clk 0:02:41]}  Bb7 {[%clk 0:02:50]} 10. O-O {[%clk 0:02:41]}  O-O {[%clk 0:02:49]} 11. Nxf6+ {[%clk 0:02:39]}  Nxf6 {[%clk 0:02:47]} 12. Ne5 {[%clk 0:02:39]}  Qc7 {[%clk 0:02:48]} 13. Bf4 {[%clk 0:02:35]}  Bd6 {[%clk 0:02:48]} 14. Rad1 {[%clk 0:02:28]}  Rfd8 {[%clk 0:02:45]} 15. Rfe1 {[%clk 0:02:26]}  c5 {[%clk 0:02:39]} 16. dxc5 {[%clk 0:02:03]}  bxc5 {[%clk 0:02:31]} 17. Bxb7 {[%clk 0:01:52]}  Qxb7 {[%clk 0:02:32]} 18. Nd3 {[%clk 0:01:52]}  Bxf4 {[%clk 0:02:28]} 19. Nxf4 {[%clk 0:01:53]}  h6 {[%clk 0:02:20]} 20. b3 {[%clk 0:01:52]}  a5 {[%clk 0:02:19]} 21. Qc4 {[%clk 0:01:51]}  Qc6 {[%clk 0:02:12]} 22. Nd3 {[%clk 0:01:46]}  Rac8 {[%clk 0:02:02]} 23. Ne5 {[%clk 0:01:35]}  Rxd1 {[%clk 0:01:55]} 24. Rxd1 {[%clk 0:01:31]}  Qe4 {[%clk 0:01:56]} 25. Qxe4 {[%clk 0:01:25]}  Nxe4 {[%clk 0:01:56]} 26. Rd7 {[%clk 0:01:13]}  Nxc3 {[%clk 0:01:48]} 27. Rxf7 {[%clk 0:01:10]}  Nxa2 {[%clk 0:01:45]} 28. Ra7 {[%clk 0:01:08]}  Nc1 {[%clk 0:01:43]} 29. Rb7 {[%clk 0:01:01]}  Rd8 {[%clk 0:01:27]} 30. Nc4 {[%clk 0:00:57]}  Rd1+ {[%clk 0:00:53]} 31. Kg2 {[%clk 0:00:57]}  Nd3 {[%clk 0:00:54]} 32. Kf3 {[%clk 0:00:39]}  Rb1 {[%clk 0:00:39]} 33. Ke3 {[%clk 0:00:30]}  Nb4 {[%clk 0:00:31]} 34. Nxa5 {[%clk 0:00:27]}  Rb2 {[%clk 0:00:27]} 35. Rb5 {[%clk 0:00:22]}  Nc2+ {[%clk 0:00:16]} 36. Ke4 {[%clk 0:00:10]}  Na3 {[%clk 0:00:11]} 37. Rxc5 {[%clk 0:00:08]}  Rxf2 {[%clk 0:00:12]} 38. h4 {[%clk 0:00:08]}  Kf7 {[%clk 0:00:12]} 39. Nc6 {[%clk 0:00:07]}  Kf6 {[%clk 0:00:10]} 40. b4 {[%clk 0:00:06]}  Rb2 {[%clk 0:00:10]} 41. Kf4 {[%clk 0:00:04]}  Nc2 {[%clk 0:00:07]} 42. b5 {[%clk 0:00:04]}  Na3 {[%clk 0:00:06]} 43. Nd4 {[%clk 0:00:04]}  Rb4 {[%clk 0:00:06]} 44. Ke3 {[%clk 0:00:03]}  Nc4+ {[%clk 0:00:04]} 45. Kd3 {[%clk 0:00:02]}  Nb6 {[%clk 0:00:05]} 46. Rc6 {[%clk 0:00:02]}  Nd5 {[%clk 0:00:05]} 47. Rxe6+ {[%clk 0:00:02]}  Kf7 {[%clk 0:00:05]} 48. Rd6 {[%clk 0:00:03]}  Ne7 {[%clk 0:00:04]} 49. Rd7 {[%clk 0:00:03]}  Ke8 {[%clk 0:00:04]} 50. Rb7 {[%clk 0:00:03]}  Rb1 {[%clk 0:00:03]} 51. Ke4 {[%clk 0:00:04]}  Re1+ {[%clk 0:00:03]} 52. Kf4 {[%clk 0:00:04]}  Nd5+ {[%clk 0:00:02]} 53. Kg4 {[%clk 0:00:04]}  Re4+ {[%clk 0:00:03]} 54. Kh5 {[%clk 0:00:04]}  Rxd4 {[%clk 0:00:04]} 55. Rxg7 {[%clk 0:00:03]}  Kf8 {[%clk 0:00:04]} 56. Rg6 {[%clk 0:00:03]}  Kf7 {[%clk 0:00:03]} 57. Rxh6 {[%clk 0:00:03]}  Nf6+ {[%clk 0:00:03]} 58. Kg5 {[%clk 0:00:03]}  Rd5+ {[%clk 0:00:02]} 59. Kf4 {[%clk 0:00:03]}  Rxb5 {[%clk 0:00:02]} 60. Rh8 {[%clk 0:00:04]}  Kg7 {[%clk 0:00:02]} 61. Ra8 {[%clk 0:00:03]}  Rb4+ {[%clk 0:00:02]} 62. Kf3 {[%clk 0:00:04]}  Rb3+ {[%clk 0:00:02]} 63. Kf4 {[%clk 0:00:04]}  Rb4+ {[%clk 0:00:03]} 64. Kf3 {[%clk 0:00:04]}  Nd5 {[%clk 0:00:03]} 65. Kg2 {[%clk 0:00:05]}  Ne3+ {[%clk 0:00:02]} 66. Kh3 {[%clk 0:00:05]}  Nf5 {[%clk 0:00:02]} 67. Ra5 {[%clk 0:00:05]}  Kf6 {[%clk 0:00:02]} 68. g4 {[%clk 0:00:05]}  Rb3+ {[%clk 0:00:02]} 69. Kg2 {[%clk 0:00:05]}  Nxh4+ {[%clk 0:00:02]} 70. Kf2 {[%clk 0:00:05]}  Kg6 {[%clk 0:00:03]} 71. Rh5 {[%clk 0:00:05]}  Nf3 {[%clk 0:00:02]} 72. Kg3 {[%clk 0:00:04]}  Ng5+ {[%clk 0:00:02]} 73. Kg2 {[%clk 0:00:04]}  Ne6 {[%clk 0:00:02]} 74. Re5 {[%clk 0:00:04]}  Nf4+ {[%clk 0:00:02]} 75. Kh2 {[%clk 0:00:03]}  Nd3 {[%clk 0:00:03]} 76. Rd5 {[%clk 0:00:03]}  Nf2 {[%clk 0:00:03]} 77. g5 {[%clk 0:00:01]}  Ng4+ {[%clk 0:00:03]} 78. Kg1 {[%clk 0:00:02]}  Ne3 {[%clk 0:00:04]} 79. Kh2 {[%clk 0:00:02]}  Nxd5 {[%clk 0:00:04]} 80. Kg2 {[%clk 0:00:02]}  Kxg5 {[%clk 0:00:04]} 81. Kf2 {[%clk 0:00:03]}  Kf4 {[%clk 0:00:05]} 82. Ke2 {[%clk 0:00:04]}  Re3+ {[%clk 0:00:05]} 83. Kd2 {[%clk 0:00:05]}  Ke4 {[%clk 0:00:06]} 84. Kc2 {[%clk 0:00:03]}  Kd4 {[%clk 0:00:06]} 0-1


[Site "https://www.chess.com"]

[Event "Titled Tuesday Blitz August 1 Early 2023"]
[White "Ganiev, Roman"]
[Black "Castella Garcia, Fausto"]
[WhiteFideId "4131452"]
[BlackFideId "3501922"]
[WhiteElo "2535"]
[BlackElo "2404"]
[Result "0-1"]
[Round "8"]
[TimeControl "180+1"]
[Date "2023.08.01"]
[WhiteClock "0:00:04"]
[BlackClock "0:00:20"]
[Board "128"]

1. e4 {[%clk 0:03:00]}  c5 {[%clk 0:02:37]} 2. Nf3 {[%clk 0:02:58]}  d6 {[%clk 0:02:36]} 3. d4 {[%clk 0:02:58]}  cxd4 {[%clk 0:02:36]} 4. Nxd4 {[%clk 0:02:58]}  Nf6 {[%clk 0:02:37]} 5. Nc3 {[%clk 0:02:58]}  g6 {[%clk 0:02:32]} 6. Be2 {[%clk 0:02:56]}  Bg7 {[%clk 0:02:29]} 7. Be3 {[%clk 0:02:56]}  O-O {[%clk 0:02:29]} 8. f3 {[%clk 0:02:52]}  Nc6 {[%clk 0:02:29]} 9. Nb3 {[%clk 0:02:50]}  a5 {[%clk 0:02:28]} 10. a4 {[%clk 0:02:49]}  Be6 {[%clk 0:02:28]} 11. h4 {[%clk 0:02:42]}  d5 {[%clk 0:02:28]} 12. exd5 {[%clk 0:02:36]}  Nxd5 {[%clk 0:02:28]} 13. Nxd5 {[%clk 0:02:31]}  Qxd5 {[%clk 0:02:29]} 14. Qxd5 {[%clk 0:02:29]}  Bxd5 {[%clk 0:02:24]} 15. Rd1 {[%clk 0:01:52]}  Nb4 {[%clk 0:01:59]} 16. Rd2 {[%clk 0:01:26]}  Nxc2+ {[%clk 0:01:46]} 17. Rxc2 {[%clk 0:01:24]}  Bxb3 {[%clk 0:01:46]} 18. Rc7 {[%clk 0:01:25]}  Bxb2 {[%clk 0:01:39]} 19. Rxb7 {[%clk 0:01:22]}  Bc3+ {[%clk 0:01:39]} 20. Kf2 {[%clk 0:01:22]}  Bxa4 {[%clk 0:01:33]} 21. Rxe7 {[%clk 0:01:22]}  Bf6 {[%clk 0:01:26]} 22. Rc7 {[%clk 0:01:16]}  Rfc8 {[%clk 0:01:19]} 23. Rb7 {[%clk 0:01:03]}  Bc6 {[%clk 0:01:17]} 24. Rb6 {[%clk 0:01:02]}  a4 {[%clk 0:01:14]} 25. Rc1 {[%clk 0:00:57]}  a3 {[%clk 0:01:06]} 26. Ra6 {[%clk 0:00:43]}  Rxa6 {[%clk 0:00:47]} 27. Bxa6 {[%clk 0:00:43]}  Ra8 {[%clk 0:00:46]} 28. Bc4 {[%clk 0:00:25]}  Be8 {[%clk 0:00:41]} 29. Ba2 {[%clk 0:00:18]}  Bxh4+ {[%clk 0:00:36]} 30. g3 {[%clk 0:00:19]}  Bf6 {[%clk 0:00:36]} 31. Bc5 {[%clk 0:00:15]}  Bb2 {[%clk 0:00:31]} 32. Re1 {[%clk 0:00:13]}  Bd7 {[%clk 0:00:25]} 33. Re7 {[%clk 0:00:09]}  Be6 {[%clk 0:00:24]} 34. Rxe6 {[%clk 0:00:09]}  fxe6 {[%clk 0:00:24]} 35. Bxe6+ {[%clk 0:00:10]}  Kg7 {[%clk 0:00:24]} 36. Ba2 {[%clk 0:00:11]}  Rc8 {[%clk 0:00:22]} 37. Bb4 {[%clk 0:00:04]}  Rc2+ {[%clk 0:00:20]} 0-1


[Site "https://www.chess.com"]

[Event "Titled Tuesday Blitz August 1 Early 2023"]
[White "Aggelis, Nikolaos"]
[Black "Ladan, Nicholas"]
[WhiteFideId "4213220"]
[BlackFideId "30918855"]
[WhiteElo "2523"]
[BlackElo "2400"]
[Result "0-1"]
[Round "8"]
[TimeControl "180+1"]
[Date "2023.08.01"]
[WhiteClock "0:00:10"]
[BlackClock "0:00:06"]
[Board "130"]

1. c4 {[%clk 0:02:55]}  e5 {[%clk 0:02:59]} 2. Nc3 {[%clk 0:02:54]}  Nc6 {[%clk 0:02:59]} 3. g3 {[%clk 0:02:51]}  Bc5 {[%clk 0:02:59]} 4. Bg2 {[%clk 0:02:52]}  d6 {[%clk 0:03:00]} 5. e3 {[%clk 0:02:44]}  a6 {[%clk 0:02:59]} 6. Nge2 {[%clk 0:02:44]}  Ba7 {[%clk 0:02:59]} 7. O-O {[%clk 0:02:44]}  Nge7 {[%clk 0:02:59]} 8. Rb1 {[%clk 0:02:42]}  O-O {[%clk 0:02:54]} 9. b4 {[%clk 0:02:43]}  Be6 {[%clk 0:02:51]} 10. d3 {[%clk 0:02:42]}  Qd7 {[%clk 0:02:51]} 11. a4 {[%clk 0:02:41]}  Rae8 {[%clk 0:02:49]} 12. b5 {[%clk 0:02:40]}  axb5 {[%clk 0:02:48]} 13. axb5 {[%clk 0:02:41]}  Nd8 {[%clk 0:02:47]} 14. Kh1 {[%clk 0:02:35]}  f5 {[%clk 0:02:47]} 15. f4 {[%clk 0:02:34]}  Nf7 {[%clk 0:02:42]} 16. Qa4 {[%clk 0:02:33]}  Bb6 {[%clk 0:02:40]} 17. Qc2 {[%clk 0:02:32]}  Nd8 {[%clk 0:02:37]} 18. Na4 {[%clk 0:02:31]}  Ba7 {[%clk 0:02:34]} 19. c5 {[%clk 0:02:30]}  dxc5 {[%clk 0:02:29]} 20. Nxc5 {[%clk 0:02:31]}  Bxc5 {[%clk 0:02:29]} 21. Qxc5 {[%clk 0:02:31]}  exf4 {[%clk 0:02:22]} 22. Nxf4 {[%clk 0:02:31]}  b6 {[%clk 0:02:09]} 23. Qc2 {[%clk 0:02:20]}  Bf7 {[%clk 0:02:04]} 24. Bb2 {[%clk 0:02:19]}  Nd5 {[%clk 0:01:50]} 25. Nxd5 {[%clk 0:01:54]}  Bxd5 {[%clk 0:01:49]} 26. e4 {[%clk 0:01:54]}  fxe4 {[%clk 0:01:40]} 27. dxe4 {[%clk 0:01:55]}  Be6 {[%clk 0:01:33]} 28. Ba3 {[%clk 0:01:46]}  Rxf1+ {[%clk 0:01:26]} 29. Rxf1 {[%clk 0:01:47]}  Nf7 {[%clk 0:01:13]} 30. Qc3 {[%clk 0:01:36]}  Nd6 {[%clk 0:01:04]} 31. Qd4 {[%clk 0:01:31]}  Nxb5 {[%clk 0:00:54]} 32. Qxd7 {[%clk 0:01:31]}  Bxd7 {[%clk 0:00:54]} 33. Bb2 {[%clk 0:01:31]}  Bc6 {[%clk 0:00:51]} 34. Re1 {[%clk 0:01:27]}  Nd6 {[%clk 0:00:48]} 35. e5 {[%clk 0:01:26]}  Bxg2+ {[%clk 0:00:48]} 36. Kxg2 {[%clk 0:01:27]}  Nc4 {[%clk 0:00:48]} 37. Ba1 {[%clk 0:01:25]}  Kf7 {[%clk 0:00:43]} 38. Kf3 {[%clk 0:01:25]}  Ke6 {[%clk 0:00:41]} 39. Ke4 {[%clk 0:01:25]}  Ra8 {[%clk 0:00:33]} 40. Rc1 {[%clk 0:01:17]}  Nd2+ {[%clk 0:00:29]} 41. Kd3 {[%clk 0:01:13]}  Nb3 {[%clk 0:00:28]} 42. Rxc7 {[%clk 0:01:14]}  Rxa1 {[%clk 0:00:24]} 43. Rxg7 {[%clk 0:01:12]}  Nc5+ {[%clk 0:00:23]} 44. Kc4 {[%clk 0:01:11]}  h5 {[%clk 0:00:12]} 45. Rg5 {[%clk 0:01:07]}  Rc1+ {[%clk 0:00:08]} 46. Kb5 {[%clk 0:01:07]}  Rb1+ {[%clk 0:00:09]} 47. Kc4 {[%clk 0:01:07]}  Nd7 {[%clk 0:00:08]} 48. Rxh5 {[%clk 0:01:07]}  Nxe5+ {[%clk 0:00:08]} 49. Kd4 {[%clk 0:01:06]}  Rd1+ {[%clk 0:00:07]} 50. Kc3 {[%clk 0:01:05]}  b5 {[%clk 0:00:07]} 51. g4 {[%clk 0:01:02]}  Rc1+ {[%clk 0:00:05]} 52. Kb4 {[%clk 0:00:59]}  Rb1+ {[%clk 0:00:05]} 53. Kc3 {[%clk 0:00:59]}  Kd5 {[%clk 0:00:05]} 54. g5 {[%clk 0:00:58]}  b4+ {[%clk 0:00:05]} 55. Kc2 {[%clk 0:00:58]}  Rg1 {[%clk 0:00:05]} 56. h4 {[%clk 0:00:56]}  Kc4 {[%clk 0:00:05]} 57. Rh8 {[%clk 0:00:56]}  Nc6 {[%clk 0:00:04]} 58. Rc8 {[%clk 0:00:55]}  Rg2+ {[%clk 0:00:04]} 59. Kc1 {[%clk 0:00:56]}  Kb5 {[%clk 0:00:05]} 60. Kb1 {[%clk 0:00:54]}  Nd4 {[%clk 0:00:05]} 61. Re8 {[%clk 0:00:43]}  b3 {[%clk 0:00:05]} 62. g6 {[%clk 0:00:30]}  Rxg6 {[%clk 0:00:04]} 63. Re5+ {[%clk 0:00:29]}  Kc4 {[%clk 0:00:04]} 64. h5 {[%clk 0:00:19]}  Rg1+ {[%clk 0:00:04]} 65. Kb2 {[%clk 0:00:19]}  Rg2+ {[%clk 0:00:05]} 66. Kb1 {[%clk 0:00:19]}  Rh2 {[%clk 0:00:05]} 67. Rg5 {[%clk 0:00:19]}  Nb5 {[%clk 0:00:06]} 68. Rg4+ {[%clk 0:00:17]}  Kc3 {[%clk 0:00:06]} 69. Rg3+ {[%clk 0:00:16]}  Kb4 {[%clk 0:00:06]} 70. Rg5 {[%clk 0:00:12]}  Nc3+ {[%clk 0:00:06]} 71. Kc1 {[%clk 0:00:10]}  b2# {[%clk 0:00:06]} 0-1


[Site "https://www.chess.com"]